[Event "GER-ch Youth-U18w 2022"]
[Site "Willingen"]
[Date "2022.06.07"]
[Round "4.1"]
[White "Falke, Ornella"]
[Black "Bardorz, Jana"]
[Result "0-1"]
[ECO "D35"]
[WhiteElo "1844"]
[BlackElo "1974"]
[Annotator "TA"]
[PlyCount "104"]
[EventDate "2022.06.05"]
[EventType "swiss"]
[EventRounds "9"]
[EventCountry "GER"]
[SourceTitle "playchess.com"]
[Source "ChessBase"]
[SourceQuality "1"]
[TimeControl "40/4500+30:900+30"]

{[%evp 12,104,15,16,12,0,0,0,0,-4,9,-16,-22,-17,15,-10,-11,-14,-5,-10,0,0,0,-8,0,-147,-147,-147,-147,-151,-145,-164,-107,-124,-120,-112,-113,-126,-132,-141,-137,-151,-151,-143,-127,-112,-43,-82,-45,-46,-46,-179,-168,-186,-108,-115,-110,-177,-187,-142,-23,-29,-28,-376,-376,-277,-172,-260,-356,-353,-337,-283,-170,-356,-193,-186,-183,-334,-237,-307,-8,-278,-179,-29958,-5600,-29958,-12685,-29964,-9270,-29973,-29971,-29969,-29969,-29989,-29990]} 1. d4 {[%emt 0:00:00]} d5 {[%emt 0:00:00]} 2. c4 {[%emt 0:00:00]} e6 {[%emt 0:00:00]} 3. Nc3 {[%emt 0:00:00]} Nf6 {[%emt 0:00:00]} 4. cxd5 {[%emt 0:00:00]} exd5 {[%emt 0:00:00]} 5. Bg5 {[%emt 0:00:00]} Be7 {[%emt 0:00:00]} 6. Qc2 {[%emt 0:00:00]} O-O {[%emt 0:00:00]} 7. e3 {[%emt 0:00:00]} h6 {[%emt 0:00:00] D35: Queen's Gambit Declined: Exchange Variation.} 8. Bf4 {[%emt 0:00:00]} c5 {[%emt 0:00:00]} 9. Nf3 {[%emt 0:00:00]} Nc6 {[%emt 0:02:01] The position is equal.} 10. Be2 {[%emt 0:09:54]} c4 {[%emt 0:07:05] [#]} 11. a3 $146 {[%emt 0:05:13]} ({Predecessor:} 11. O-O Bg4 12. Ne5 Bxe2 13. Qxe2 Re8 14. Ng4 Bd6 15. Nxf6+ Qxf6 16. Nxd5 Qe6 17. Qf3 {½-½ (34) Recoulat,E (2201)-Banos,O (2340) Trenque Lauquen 2000}) 11... a6 {[%emt 0:05:12]} 12. O-O {[%emt 0:02:05]} Re8 {[%emt 0:04:38]} 13. Rad1 {[%emt 0:07:23]} Bd6 {[%emt 0:02:48]} 14. Ne5 {[%emt 0:06:21]} Qc7 {[%emt 0:07:48]} 15. Bg3 {[%emt 0:09:30]} b5 {[%emt 0:10:39]} 16. Bh4 {[%emt 0:11:15]} Nxe5 {[%emt 0:06:24]} 17. dxe5 {[%emt 0:07:03]} Bxe5 {[%emt 0:00:14]} 18. f4 {[%emt 0:00:24]} (18. Bxf6 $11 {remains equal.} Bxf6 19. Nxd5) 18... Bxc3 $17 {[%emt 0:04:09]} 19. Qxc3 {[%emt 0:00:14]} Ne4 {[%emt 0:02:24]} 20. Qd4 {[%emt 0:00:23]} Bb7 {[%emt 0:01:04]} 21. f5 {[%emt 0:03:21]} Qc5 {[%emt 0:05:17]} (21... f6 $19 22. Be1 Re5) 22. Bf3 {[%emt 0:04:58]} Qxd4 {[%emt 0:02:10]} 23. exd4 {[%emt 0:00:16]} Nd6 {[%emt 0:06:19][%cal Be4d6,Bd6f5,Bf5g3,Bg3f1][%mdl 32] Black is more active.} 24. f6 {[%emt 0:01:17]} g5 {[%emt 0:05:12]} 25. Bg3 {[%emt 0:01:43] [#]} Nf5 {[%emt 0:01:55]} 26. Bxd5 {[%emt 0:00:46]} Nxg3 {[%emt 0:01:18]} ({Stronger than} 26... Bxd5 27. Rxf5 Rad8 28. Re5 $11) 27. Bxb7 {[%emt 0:00:07]} Nxf1 {[%emt 0:02:17]} 28. Bxa8 {[%emt 0:00:20]} Rxa8 {[%emt 0:01:18]} (28... Ne3 $17 29. Re1 Rxa8 30. Rxe3 Kh7) 29. Kxf1 {[%emt 0:00:09][%mdl 4096] Endgame KR-KR} Kh7 {[%emt 0:01:12]} 30. Ke2 {[%emt 0:04:49]} Kg6 {[%emt 0:00:43]} 31. g4 {[%emt 0:02:43]} (31. Kd2 $1 $15) 31... Kxf6 $19 {[%emt 0:01:38]} 32. Rf1+ {[%emt 0:00:17]} Ke6 {[%emt 0:00:56]} (32... Kg6 $19 33. Kf3 Re8) 33. Rf5 $17 {[%emt 0:01:31]} f6 {[%emt 0:01:21][%cal Oh6h5]} 34. Kf3 {[%emt 0:01:19]} (34. Rc5 $17) 34... Rc8 {[%emt 0:02:00] And now ...c3 would win.} 35. Ke4 {[%emt 0:02:14]} c3 {[%emt 0:00:09]} (35... Re8 $17 {Strongly threatening ...Kf7+.} 36. a4 Kf7+ 37. Kf3 bxa4) 36. bxc3 $1 $11 {[%emt 0:00:09]} Rxc3 {[%emt 0:00:07]} 37. d5+ $2 {[%emt 0:00:35][%mdl 8192]} (37. a4 $1 $11 {and White has nothing to worry.}) 37... Ke7 $19 {[%emt 0:00:56]} 38. d6+ {[%emt 0:00:16]} Ke6 {[%emt 0:00:58]} ({Not} 38... Kxd6 39. Rxf6+ Kc5 40. Rxa6 $15) 39. d7 {[%emt 0:01:20]} Kxd7 {[%emt 0:02:52]} 40. Rxf6 {[%emt 0:00:40]} Rxa3 {[%emt 0:00:29]} 41. Rxh6 {[%emt 0:15:24]} b4 {[%emt 0:00:00]} 42. Rg6 $2 {[%emt 0:00:00]} (42. h4) 42... Ra5 {[%emt 0:00:00]} (42... b3 $142 {White must now prevent ...Ra4+.} 43. Kd4 a5) 43. Rb6 {[%emt 0:00:00] [#]} Ra4 {[%emt 0:06:18] Hoping for ...Kc7.} 44. Kd3 $2 {[%emt 0:00:00]} (44. Kd4 {was forced.}) 44... a5 {[%emt 0:02:47][%cal Ba6a5,Ba5a4,Ba4a3][%mdl 32]} 45. Rb5 {[%emt 0:00:00]} Ra2 $2 {[%emt 0:02:39]} (45... Ra3+ $19 46. Kc2 Kc6 47. Rxg5 a4) 46. Rxg5 $2 {[%emt 0:00:00][%mdl 8192]} (46. Kc4 $1 $11) 46... a4 {[%emt 0:01:08] Threatens to win with ...b3.} ({And not} 46... Rxh2 47. Rxa5 Rg2 48. g5 $11) 47. Kc4 {[%emt 0:02:30]} (47. Rg7+ $19 Ke6 48. Rg6+ Kf7 49. Rb6) 47... b3 {[%emt 0:00:33][%cal Bb4b3,Bb3b2][%mdl 32]} 48. Rd5+ {[%emt 0:00:36]} Ke6 {[%emt 0:00:40]} 49. Rb5 {[%emt 0:05:54]} b2 {[%emt 0:00:27] ( -> ...a3)} 50. Kc3 {[%emt 0:00:29]} a3 {[%emt 0:00:05] Black mates.} 51. g5 {[%emt 0:01:20]} Ra1 {[%emt 0:00:13]} 52. Kc2 {[%emt 0:00:30]} Rc1+ {[%emt 0:00:07] Weighted Error Value: White=0.77/Black=0.32} 0-1

[Event "GER-ch Youth-U18w 2022"]
[Site "Willingen"]
[Date "2022.06.07"]
[Round "4.2"]
[White "Rudolph, Eva"]
[Black "Goetten Wagner, Julia"]
[Result "1-0"]
[ECO "C45"]
[WhiteElo "1860"]
[BlackElo "1631"]
[Annotator "NA COMBH RC"]
[PlyCount "59"]
[EventDate "2022.06.05"]
[EventType "swiss"]
[EventRounds "9"]
[EventCountry "GER"]
[SourceTitle "playchess.com"]
[Source "ChessBase"]
[SourceQuality "1"]
[TimeControl "40/4500+30:900+30"]

1. e4 {[%emt 0:00:00]} e5 {[%emt 0:00:00]} 2. Nf3 {[%emt 0:00:00]} Nc6 {[%emt 0:00:00]} 3. d4 {[%emt 0:00:00]} exd4 {[%emt 0:00:00]} 4. Nxd4 {[%emt 0:00:00]} Bc5 {[%emt 0:00:00]} 5. Nb3 {[%emt 0:00:00]} Bb6 {[%emt 0:00:00]} 6. Nc3 {[%emt 0:00:00]} Nf6 {[%emt 0:00:00]} 7. Qe2 {[%emt 0:00:00]} O-O {[%emt 0:00:00]} 8. Bg5 {[%emt 0:00:00]} Nd4 {[%emt 0:00:00]} 9. Qd2 {[%emt 0:00:00]} Nxb3 {[%emt 0:00:00]} 10. axb3 {[%emt 0:00:00]} Re8 {[%emt 0:00:00]} 11. f3 {[%emt 0:04:22]} h6 {[%emt 0:04:47]} 12. Be3 {[%emt 0:01:07]} Bxe3 {[%emt 0:07:28]} 13. Qxe3 {[%emt 0:00:06]} b6 {[%emt 0:04:25]} 14. O-O-O {[%emt 0:02:36]} Bb7 {[%emt 0:07:12]} 15. Qd2 {[%emt 0:13:42]} c6 {[%emt 0:05:26]} 16. Kb1 {[%emt 0:12:05]} b5 {[%emt 0:07:29]} 17. g4 {[%emt 0:07:22]} a6 {[%emt 0:11:37]} (17... d5 $16) 18. h4 {[%emt 0:03:21]} d5 {[%emt 0:10:58]} (18... h5 $18) 19. g5 {[%emt 0:03:53]} d4 {[%emt 0:01:51]} 20. Ne2 {[%emt 0:01:49]} hxg5 {[%emt 0:00:18]} 21. hxg5 {[%emt 0:02:08]} Nh7 {[%emt 0:00:41]} 22. f4 {[%emt 0:21:27]} g6 {[%emt 0:01:56]} 23. Nxd4 {[%emt 0:03:18]} c5 {[%emt 0:02:24]} 24. Qh2 {[%emt 0:00:46]} cxd4 {[%emt 0:07:12]} 25. Qxh7+ {[%emt 0:00:11]} Kf8 {[%emt 0:00:09]} 26. Qh8+ {[%emt 0:00:21]} Ke7 $18 {[%emt 0:00:08]} 27. Qf6+ {[%emt 0:00:10]} Kd7 {[%emt 0:00:25]} 28. Rxd4+ {[%emt 0:00:24]} Kc8 {[%emt 0:00:47]} 29. Rxd8+ {[%emt 0:00:30]} Rxd8 {[%emt 0:00:12] 20.00} 30. Bd3 {[%emt 0:00:18]} 1-0

[Event "GER-ch Youth-U18w 2022"]
[Site "Willingen"]
[Date "2022.06.07"]
[Round "4.3"]
[White "Heutling, Elina"]
[Black "Gröschel, Karoline"]
[Result "1-0"]
[ECO "B43"]
[WhiteElo "1798"]
[BlackElo "1546"]
[Annotator "NA RC COMBH"]
[PlyCount "103"]
[EventDate "2022.06.05"]
[EventType "swiss"]
[EventRounds "9"]
[EventCountry "GER"]
[SourceTitle "playchess.com"]
[Source "ChessBase"]
[SourceQuality "1"]
[TimeControl "40/4500+30:900+30"]

1. e4 {[%emt 0:00:00]} c5 {[%emt 0:00:00]} 2. Nf3 {[%emt 0:00:00]} e6 {[%emt 0:00:00]} 3. d4 {[%emt 0:00:00]} cxd4 {[%emt 0:00:00]} 4. Nxd4 {[%emt 0:00:00]} a6 {[%emt 0:00:00]} 5. Nc3 {[%emt 0:00:00]} Qc7 {[%emt 0:00:00]} 6. Bd3 {[%emt 0:00:00]} Nf6 {[%emt 0:00:00]} 7. f4 {[%emt 0:00:00]} Bb4 {[%emt 0:00:00]} 8. Bd2 {[%emt 0:00:00]} Bxc3 {[%emt 0:00:00]} 9. Bxc3 {[%emt 0:00:00]} Qxf4 {[%emt 0:00:00]} 10. Qe2 {[%emt 0:00:00]} O-O {[%emt 0:10:35]} 11. Nf3 {[%emt 0:10:49]} d5 {[%emt 0:10:35]} 12. e5 {[%emt 0:13:42]} Ne4 {[%emt 0:04:02]} 13. Bd4 {[%emt 0:04:17]} Nc6 {[%emt 0:05:00]} 14. Be3 {[%emt 0:05:47]} Qf5 {[%emt 0:01:24]} 15. Bc5 {[%emt 0:20:43]} Rd8 {[%emt 0:03:46]} 16. Bd6 {[%emt 0:01:05]} Qg4 {[%emt 0:18:29]} 17. Bxe4 {[%emt 0:04:50]} dxe4 {[%emt 0:00:25]} 18. Nd4 {[%emt 0:05:53]} Qxe2+ {[%emt 0:00:26]} 19. Nxe2 {[%emt 0:00:04]} f5 {[%emt 0:04:26]} 20. O-O-O {[%emt 0:01:56]} Rd7 {[%emt 0:04:51]} 21. Nc3 {[%emt 0:04:14]} b5 {[%emt 0:01:24]} 22. a4 {[%emt 0:00:24]} bxa4 {[%emt 0:03:12]} 23. Nxa4 {[%emt 0:00:16]} Rb7 {[%emt 0:00:18]} 24. Nc3 {[%emt 0:04:53]} Bd7 {[%emt 0:02:15]} 25. b3 {[%emt 0:02:08]} Nd8 {[%emt 0:04:28]} 26. Rd4 {[%emt 0:03:28]} Nf7 {[%emt 0:03:47]} 27. Rhd1 {[%emt 0:00:08]} Rc8 {[%emt 0:02:45]} 28. Kb2 {[%emt 0:01:07]} Rc6 {[%emt 0:01:32]} 29. Ne2 {[%emt 0:01:22]} Nxd6 {[%emt 0:01:08]} 30. Rxd6 {[%emt 0:00:07]} Rxd6 {[%emt 0:01:49]} 31. Rxd6 {[%emt 0:00:06]} a5 {[%emt 0:01:13]} 32. Kc1 {[%emt 0:01:16]} Kf7 {[%emt 0:00:07]} 33. Nd4 {[%emt 0:00:27]} Rc7 {[%emt 0:01:17]} 34. Kd2 {[%emt 0:00:55]} Ke7 {[%emt 0:00:09]} 35. Ra6 {[%emt 0:01:05]} Rc5 {[%emt 0:00:46]} 36. Ra7 {[%emt 0:00:17]} Kd8 {[%emt 0:01:00]} 37. Ra8+ {[%emt 0:00:47]} Ke7 {[%emt 0:00:06]} 38. Ra7 {[%emt 0:00:09]} Rd5 {[%emt 0:00:32]} 39. Ke3 {[%emt 0:01:04]} Kd8 {[%emt 0:00:59]} 40. Ra8+ {[%emt 0:01:11]} Ke7 {[%emt 0:01:03]} 41. Ra7 {[%emt 0:00:00]} Kd8 {[%emt 0:00:00]} 42. c4 {[%emt 0:03:17]} Rxe5 {[%emt 0:00:00]} 43. Ne2 {[%emt 0:00:35]} Rc5 {[%emt 0:03:50]} 44. Kd4 {[%emt 0:00:07]} Rc7 {[%emt 0:00:14]} 45. Rxa5 {[%emt 0:00:50]} Rb7 {[%emt 0:00:42]} 46. Kc3 {[%emt 0:00:20]} Kc7 {[%emt 0:01:08]} 47. b4 {[%emt 0:02:14]} Kd6 {[%emt 0:03:02]} 48. c5+ {[%emt 0:01:46]} Kd5 {[%emt 0:01:35]} 49. Nf4+ {[%emt 0:02:43]} Kc6 {[%emt 0:00:40]} 50. Kc4 {[%emt 0:00:44]} e5 {[%emt 0:01:43]} 51. Nd5 {[%emt 0:01:51]} Rb8 {[%emt 0:06:29]} 52. Ra7 {[%emt 0:00:24]} 1-0

[Event "GER-ch Youth-U18w 2022"]
[Site "Willingen"]
[Date "2022.06.07"]
[Round "4.4"]
[White "Orlova, Alicia"]
[Black "Dietz, Kristin"]
[Result "0-1"]
[ECO "B26"]
[WhiteElo "1724"]
[BlackElo "1707"]
[Annotator "NA RC COMBH"]
[PlyCount "60"]
[EventDate "2022.06.05"]
[EventType "swiss"]
[EventRounds "9"]
[EventCountry "GER"]
[SourceTitle "playchess.com"]
[Source "ChessBase"]
[SourceQuality "1"]
[TimeControl "40/4500+30:900+30"]

1. e4 {[%emt 0:00:00]} c5 {[%emt 0:00:00]} 2. Nc3 {[%emt 0:00:00]} Nc6 {[%emt 0:00:00]} 3. g3 {[%emt 0:00:00]} g6 {[%emt 0:00:00]} 4. Bg2 {[%emt 0:00:00]} Bg7 {[%emt 0:00:00]} 5. d3 {[%emt 0:00:00]} d6 {[%emt 0:00:00]} 6. Be3 {[%emt 0:00:00]} e5 {[%emt 0:00:00]} 7. Qd2 {[%emt 0:00:00]} Nge7 {[%emt 0:00:00]} 8. Bh6 {[%emt 0:00:00]} O-O {[%emt 0:00:00]} 9. h4 Bxh6 10. Qxh6 {[%emt 0:00:00]} f6 {[%emt 0:00:00]} 11. Nge2 Nd4 {[%emt 0:00:00]} 12. Qd2 {[%emt 0:00:00]} Bg4 {[%emt 0:00:15]} 13. Nxd4 {[%emt 0:01:03]} cxd4 {[%emt 0:00:11]} 14. Nd1 {[%emt 0:00:25]} Bxd1 {[%emt 0:13:47]} 15. Rxd1 Rc8 {[%emt 0:06:28]} 16. f4 {[%emt 0:01:59]} Qc7 {[%emt 0:11:05]} 17. Rc1 {[%emt 0:00:57]} d5 {[%emt 0:11:55]} 18. Bh3 {[%emt 0:05:07]} f5 {[%emt 0:02:49]} 19. exf5 {[%emt 0:08:15]} Nxf5 {[%emt 0:00:17]} 20. Bxf5 {[%emt 0:00:14]} Rxf5 {[%emt 0:00:16]} 21. O-O {[%emt 0:00:49]} Rcf8 {[%emt 0:07:04]} 22. Qe2 {[%emt 0:18:08]} exf4 {[%emt 0:01:36]} 23. g4 {[%emt 0:09:10]} Re5 {[%emt 0:01:35]} 24. Qf3 {[%emt 0:01:44]} Qe7 {[%emt 0:05:51]} 25. g5 {[%emt 0:03:34]} Qe6 {[%emt 0:02:55]} 26. Rf2 {[%emt 0:00:15]} Re3 {[%emt 0:01:06]} 27. Qh1 {[%emt 0:01:37]} Rh3 {[%emt 0:00:54]} 28. Rh2 {[%emt 0:01:07]} Qe3+ {[%emt 0:00:08]} 29. Kg2 {[%emt 0:00:30]} Rg3+ {[%emt 0:00:30]} 30. Kf1 Qxc1+ 0-1

[Event "GER-ch Youth-U18w 2022"]
[Site "Willingen"]
[Date "2022.06.07"]
[Round "4.5"]
[White "Schneider, Katharina"]
[Black "Kroemer, Paulina"]
[Result "1-0"]
[ECO "B32"]
[WhiteElo "1810"]
[BlackElo "1583"]
[Annotator "NA RC COMBH"]
[PlyCount "79"]
[EventDate "2022.06.05"]
[EventType "swiss"]
[EventRounds "9"]
[EventCountry "GER"]
[SourceTitle "playchess.com"]
[Source "ChessBase"]
[SourceQuality "1"]
[TimeControl "40/4500+30:900+30"]

1. e4 {[%emt 0:00:00]} c5 {[%emt 0:00:00]} 2. Nf3 {[%emt 0:00:00]} Nc6 {[%emt 0:00:00]} 3. d4 {[%emt 0:00:00]} cxd4 {[%emt 0:00:00]} 4. Nxd4 {[%emt 0:00:00]} Qb6 {[%emt 0:00:00]} 5. Nb3 {[%emt 0:00:00]} Nf6 {[%emt 0:00:00]} 6. Nc3 {[%emt 0:00:00]} e6 {[%emt 0:00:00]} 7. Bd3 {[%emt 0:00:00]} a6 {[%emt 0:00:00]} 8. Be3 {[%emt 0:00:00]} Qc7 {[%emt 0:00:00]} 9. f4 {[%emt 0:00:00]} d6 {[%emt 0:00:00]} 10. Qf3 {[%emt 0:00:00]} Be7 {[%emt 0:00:00]} 11. g4 {[%emt 0:00:00]} b5 {[%emt 0:00:00]} 12. g5 {[%emt 0:00:00]} Nd7 {[%emt 0:00:00]} 13. O-O-O {[%emt 0:00:00]} Bb7 {[%emt 0:00:00]} 14. Kb1 {[%emt 0:00:00]} O-O-O {[%emt 0:13:11]} 15. h4 {[%emt 0:00:00]} Nc5 {[%emt 0:05:52]} 16. Nxc5 {[%emt 0:00:00]} dxc5 {[%emt 0:00:09]} 17. Qf2 {[%emt 0:02:20]} Nd4 {[%emt 0:03:47]} 18. Rhe1 {[%emt 0:12:47]} Rd7 {[%emt 0:07:11]} 19. Bf1 {[%emt 0:20:03]} Rhd8 $11 {[%emt 0:03:42]} 20. Bg2 {[%emt 0:17:27]} b4 {[%emt 0:11:37]} 21. Ne2 {[%emt 0:02:54]} Nb5 {[%emt 0:11:12]} 22. Rxd7 {[%emt 0:01:27]} Rxd7 {[%emt 0:00:04]} 23. f5 {[%emt 0:03:45]} Qa5 {[%emt 0:06:25]} 24. fxe6 {[%emt 0:05:55]} ({Avoid the trap} 24. Bxc5 $2 {[#]} Nc3+ $1 25. Nxc3 (25. bxc3 $2 bxc3 26. Ka1 Bxc5 $19) 25... Bxc5 $19) 24... fxe6 {[%emt 0:00:07]} 25. Bh3 {[%emt 0:00:40]} Qb6 {[%emt 0:17:54]} 26. Qf7 {[%emt 0:01:16]} Nc7 {[%emt 0:04:26]} 27. Qg8+ {[%emt 0:07:31]} Bd8 {[%emt 0:01:02]} 28. Nf4 {[%emt 0:03:09]} Bxe4 {[#]} 29. Nxe6 $2 {[%emt 0:03:08]} ({Only move:} 29. Bc1 $1 $18 Bb7 30. Qxh7 (30. Nxe6 Bd5 $11)) 29... Bd5 {[%emt 0:00:47]} 30. Bxc5 {[%emt 0:00:18]} (30. Bf4 $11 Bxa2+ 31. Kxa2 b3+ 32. cxb3 (32. Kb1 Qa5 $11) 32... Qa5+ 33. Kb1 Qxe1+ 34. Bc1) 30... Bxa2+ $2 {[%emt 0:02:05]} 31. Kxa2 {[%emt 0:03:23]} b3+ {[%emt 0:00:07]} 32. cxb3 {[%emt 0:00:17]} Qa5+ {[%emt 0:00:06]} 33. Ba3 {[%emt 0:00:15]} Qxe1 {[%emt 0:00:07]} 34. Nxd8 {[%emt 0:00:44]} Qd1 {[%emt 0:01:02]} 35. Bxd7+ {[%emt 0:01:27]} Kxd7 {[%emt 0:00:35]} 36. Nb7 {[%emt 0:00:37]} Qh5 {[%emt 0:01:01]} 37. Qxg7+ {[%emt 0:00:30]} Kc6 {[%emt 0:00:08]} 38. Nd8+ {[%emt 0:00:29]} Kb6 {[%emt 0:00:09]} 39. Qd4+ {[%emt 0:00:32]} Kb5 {[%emt 0:00:10]} 40. Qb4# {[%emt 0:00:14]} 1-0

[Event "GER-ch Youth-U18w 2022"]
[Site "Willingen"]
[Date "2022.06.07"]
[Round "4.6"]
[White "Cheredzhiyska, Iva"]
[Black "Albayrak, Nese Pinar"]
[Result "1-0"]
[ECO "B01"]
[WhiteElo "1696"]
[BlackElo "1683"]
[Annotator "NA RC COMBH"]
[PlyCount "73"]
[EventDate "2022.06.05"]
[EventType "swiss"]
[EventRounds "9"]
[EventCountry "GER"]
[SourceTitle "playchess.com"]
[Source "ChessBase"]
[SourceQuality "1"]
[TimeControl "40/4500+30:900+30"]

1. e4 {[%emt 0:00:00]} d5 {[%emt 0:00:00]} 2. exd5 {[%emt 0:00:00]} Qxd5 {[%emt 0:00:00]} 3. Nc3 {[%emt 0:00:00]} Qd6 {[%emt 0:00:00]} 4. d4 {[%emt 0:00:00]} Nf6 {[%emt 0:00:00]} 5. Nf3 {[%emt 0:00:00]} a6 {[%emt 0:00:00]} 6. a4 {[%emt 0:00:00]} b6 {[%emt 0:00:00]} 7. Bc4 {[%emt 0:00:00]} Nbd7 {[%emt 0:00:00]} 8. O-O {[%emt 0:02:08]} Bb7 {[%emt 0:00:00]} 9. Re1 {[%emt 0:03:35]} c5 {[%emt 0:22:52]} 10. Ng5 {[%emt 0:15:37]} cxd4 {[%emt 0:16:07]} 11. Bxf7+ {[%emt 0:07:57]} Kd8 {[%emt 0:00:05]} 12. Ne6+ {[%emt 0:02:40]} Kc8 {[%emt 0:00:02]} 13. Qxd4 {[%emt 0:01:06]} Qxd4 {[%emt 0:03:39]} 14. Nxd4 {[%emt 0:00:06]} e5 {[%emt 0:00:26]} 15. Ne6 {[%emt 0:01:12]} g6 {[%emt 0:25:00]} 16. a5 {[%emt 0:07:00]} Bd6 {[%emt 0:05:42]} 17. axb6 {[%emt 0:05:59]} Nxb6 {[%emt 0:00:18]} 18. Bg5 {[%emt 0:00:59]} Nfd5 {[%emt 0:02:24]} 19. Rad1 {[%emt 0:03:16]} Nxc3 {[%emt 0:03:35]} 20. Rxd6 {[%emt 0:02:24]} Nc4 {[%emt 0:02:24]} 21. Rd3 {[%emt 0:04:45]} Ne4 {[%emt 0:00:46]} 22. Rxe4 {[%emt 0:02:38]} Bxe4 {[%emt 0:00:21]} 23. Rc3 {[%emt 0:00:14]} Bd5 {[%emt 0:00:36]} 24. b3 {[%emt 0:01:03]} Rb8 {[%emt 0:01:06]} 25. f3 {[%emt 0:01:55]} Kd7 {[%emt 0:00:47]} 26. bxc4 {[%emt 0:01:36]} Rb1+ {[%emt 0:01:16]} 27. Kf2 {[%emt 0:00:06]} Bc6 {[%emt 0:00:59]} 28. Rd3+ {[%emt 0:01:29]} Kc8 {[%emt 0:00:16]} 29. Bf6 {[%emt 0:00:38]} e4 {[%emt 0:00:45]} 30. fxe4 {[%emt 0:00:36]} Bxe4 {[%emt 0:00:06]} 31. Rd4 {[%emt 0:00:36]} Bxc2 {[%emt 0:00:54]} 32. Bxh8 {[%emt 0:00:16]} a5 {[%emt 0:00:08]} 33. Rd2 {[%emt 0:02:12]} Bf5 {[%emt 0:00:51]} 34. Nc5 {[%emt 0:01:20]} Rb4 {[%emt 0:00:27]} 35. Bc3 {[%emt 0:00:43]} Rb6 {[%emt 0:00:24]} 36. Bxa5 {[%emt 0:00:18]} Rf6 37. Rd5 1-0

[Event "GER-ch Youth-U18w 2022"]
[Site "Willingen"]
[Date "2022.06.07"]
[Round "4.7"]
[White "Yue, Qizhou"]
[Black "Berghold, Lotta"]
[Result "1/2-1/2"]
[ECO "C10"]
[WhiteElo "1715"]
[BlackElo "1482"]
[Annotator "NA RC COMBH"]
[PlyCount "50"]
[EventDate "2022.06.05"]
[EventType "swiss"]
[EventRounds "9"]
[EventCountry "GER"]
[SourceTitle "playchess.com"]
[Source "ChessBase"]
[SourceQuality "1"]
[TimeControl "40/4500+30:900+30"]

1. e4 {[%emt 0:00:00]} e6 {[%emt 0:00:00]} 2. d4 {[%emt 0:00:00]} d5 {[%emt 0:00:00]} 3. Nd2 {[%emt 0:00:00]} dxe4 {[%emt 0:00:00]} 4. Nxe4 {[%emt 0:00:00]} Bd7 {[%emt 0:00:00]} 5. Nf3 {[%emt 0:00:00]} Bc6 {[%emt 0:00:00]} 6. Ng3 {[%emt 0:00:00]} Nf6 {[%emt 0:00:00]} 7. Ne5 {[%emt 0:03:36]} Be7 {[%emt 0:00:00]} 8. Nxc6 {[%emt 0:05:09]} Nxc6 {[%emt 0:00:00]} 9. c3 {[%emt 0:16:14]} O-O {[%emt 0:00:00]} 10. Bb5 {[%emt 0:05:12]} Qd5 {[%emt 0:00:00]} 11. Bxc6 {[%emt 0:00:30]} Qxc6 {[%emt 0:00:00]} 12. O-O {[%emt 0:00:50]} Qd5 {[%emt 0:08:24]} 13. Qe2 {[%emt 0:05:10]} Rfd8 {[%emt 0:06:49]} 14. Bf4 {[%emt 0:06:05]} Bd6 {[%emt 0:04:28]} 15. Be5 {[%emt 0:05:14]} Nd7 {[%emt 0:15:23]} 16. c4 {[%emt 0:10:55]} Qa5 {[%emt 0:00:42]} 17. Bxd6 {[%emt 0:01:04]} cxd6 {[%emt 0:00:05]} 18. Rfc1 {[%emt 0:04:27]} Nf6 {[%emt 0:13:12]} 19. Rc3 {[%emt 0:04:58]} Qb6 {[%emt 0:11:42]} 20. Rd1 {[%emt 0:00:50]} Rac8 {[%emt 0:05:20]} 21. Rb3 {[%emt 0:03:03]} Qc7 {[%emt 0:03:06]} 22. Rc3 {[%emt 0:03:58]} Qd7 {[%emt 0:07:20]} 23. Nh5 {[%emt 0:02:29]} Nxh5 {[%emt 0:00:58]} 24. Qxh5 {[%emt 0:00:06]} f5 {[%emt 0:02:50]} 25. b3 {[%emt 0:04:06]} Qf7 {[%emt 0:00:59]} 1/2-1/2